Cogmind - Beta 16 @@@ ROGUE MODE // 2025.10.22 @ 01:01:11 Player: War__Prophet Result: Destroyed by G-34 Mercenary with Small Laser Performance ------------- Evolutions (1) 500 Regions Visited (3) 600 Robots Destroyed (20) 100 Value Destroyed (574) 574 Prototype IDs (0) 0 Alien Tech Used (0) 0 Bonus (0) 0 TOTAL SCORE: 1774 Bonus ------- None Cogmind --------- Core Integrity 0/400 Matter 275/300 Energy 250/250 System Corruption 3% Temperature Cool (6) Movement Rolling (90) Location -9/Storage Parts ------- > --- POWER (1) -------- Ion Engine > --- PROPULSION (2) --- Wheel Compact Wheel > --- UTILITY (4) ------ Heat Sink Small Storage Unit Terrain Scan Processor Light Armor Plating > --- WEAPON (2) ------- Heavy Hammer > --- INVENTORY (8) ---- Light Ion Engine Peak State ------------ > --- POWER ------------ Light Nuclear Core > --- PROPULSION ------- Wheel Compact Wheel > --- UTILITY ---------- Small Storage Unit Visual Processing Unit Terrain Scan Processor > --- WEAPON ----------- Light Assault Rifle Light Assault Rifle > --- INVENTORY -------- Light Ion Engine [Rating: 12] Favorites ----------- Power Reinforced Ion Engine Engine Reinforced Ion Engine Power Core Light Nuclear Core Propulsion Compact Wheel Wheel Compact Wheel Utility Small Storage Unit Device Heat Sink Storage Small Storage Unit Processor Terrain Scan Processor Protection Light Armor Plating Weapon Light Assault Rifle Ballistic Gun Light Assault Rifle Impact Weapon Heavy Hammer Build | -11 -10 -9 -9 ------- Run | Yrd Mat Mat Sto Slots Evolved 2 | . . 2 . Power . | . . . . Propulsion . | . . . . Utility 2 | . . 2 . Weapon . | . . . . Parts Attached 19 | 6 2 6 5 Power 4 | 1 1 1 1 Engine 3 | 1 . 1 1 Core 1 | . 1 . . Reactor . | . . . . Propulsion 5 | 2 . 1 2 Treads . | . . . . Leg . | . . . . Wheel 5 | 2 . 1 2 Hover . | . . . . Flight . | . . . . Utility 6 | 1 1 3 1 Device 1 | . . . 1 Storage 1 | 1 . . . Processor 2 | . 1 1 . Hackware . | . . . . Protection 2 | . . 2 . Artifact . | . . . . Weapon 4 | 2 . 1 1 Energy Gun . | . . . . Energy Cannon . | . . . . Ballistic Gun 3 | 2 . 1 . Ballistic Cannon . | . . . . Launcher . | . . . . Special Weapon . | . . . . Impact Weapon 1 | . . . 1 Slashing Weapon . | . . . . Piercing Weapon . | . . . . Special Melee Weapon . | . . . . Unidentified Prototypes . | . . . . Parts Lost 10 | . 1 2 7 Power 3 | . 1 1 1 Propulsion 3 | . . 1 2 Utility 2 | . . . 2 Weapon 2 | . . . 2 Highest Loss Streak 6 | . 1 2 6 To Critical Strikes . | . . . . Average Backups 2 | . 1 2 3 Power . | . 1 1 1 Propulsion . | . . . 1 Utility . | . . . . Weapon . | . . . . Tool/Special . | . . . . Unused Backups 1 | . . . 1 Power 1 | . . . 1 Propulsion . | . . . . Utility . | . . . . Weapon . | . . . . Tool/Special . | . . . . Average Slot Usage (%) 82 | . 82 88 71 Engine 7 | . 5 7 8 Core 2 | . 5 2 . Wheel 19 | . 28 16 13 Storage 11 | . 14 11 11 Processor 13 | . 1 21 15 Protection 4 | . . 7 3 Ballistic Gun 20 | . 28 22 8 Impact Weapon 1 | . . . 8 Peak Build Rating 12 | 6 10 12 12 Average Rating 8 | 4 6 11 8 On Entrance 7 | . 6 10 12 Avg Prop Armor Cover (%) . | . . . . Naked Turns . | . . . . Heaviest Build 20 | 12 12 20 20 Greatest Support 26 | 26 26 26 26 Greatest Overweight (x) 5 | . . 1 5 Average Overweight (x) . | . . . . Largest Inventory Capacity 8 | 8 8 8 8 Average Capacity 7 | 6 8 8 8 Most Carried 5 | 1 1 5 5 Average Carried 2 | . 1 2 3 Final Capacity 8 | 8 8 8 8 Final Carried 5 | 1 1 5 1 Class Distribution -------------------- 79% | Mutant 20% | Scavenger-Mutant Dominant Class ---------------- Mutant | -10/Materials Mutant | -9/Materials Mutant | -9/Storage Resources | -11 -10 -9 -9 ----------- Run | Yrd Mat Mat Sto Matter Collected 508 | 214 97 147 50 Remotely . | . . . . Salvage Created 711 | . 165 311 235 Parts 37 | . 10 22 5 Haulers Intercepted . | . . . . Recyclers Shooed 7 | . . 7 . Parts Field Recycled . | . . . . Retrieved Matter . | . . . . Parts Self-Destructed . | . . . . Prevented . | . . . . Parts Restored . | . . . . Kills | -11 -10 -9 -9 ------- Run | Yrd Mat Mat Sto Combat Hostiles Destroyed 17 | . 4 7 6 Melee 2 | . . . 2 Guns 13 | . 4 7 2 Classes Destroyed 6 | . 1 5 . Worker 2 | . . 1 1 Recycler 1 | . . 1 . Swarmer 3 | . . 3 . Grunt 11 | . 4 2 5 Brawler 1 | . . 1 . Sentry 2 | . . 1 1 Best Kill Streak 3 | . 2 3 3 Combat Bots Only 3 | . 2 3 3 Max Kills in Single Turn 2 | . 1 2 1 Gunslinging 1 | . . 1 . Exploded . | . . . . Melee 1 | . . . 1 Uniques/NPCs Destroyed . | . . . . Combat | -11 -10 -9 -9 -------- Run | Yrd Mat Mat Sto Hostile Shots Fired 150 | . 31 52 67 Missed 39 | . 9 15 15 Hits 111 | . 22 37 52 Melee 1 | . . 1 . Projectile 110 | . 22 36 52 Critical Strikes 2 | . . 2 . Damage Taken 1393 | . 284 460 649 Core 479 | . 75 118 286 Absorbed by Shields . | . . . . Core Remaining (%) 85 | 100 70 . . Volleys Fired 77 | . 23 44 10 Largest 2 | . 2 2 1 Hottest 40 | . 40 40 20 Shots Fired 145 | . 46 89 10 Gun 145 | . 46 89 10 Cannon . | . . . . Launcher . | . . . . Special . | . . . . Kinetic 145 | . 46 89 10 Thermal . | . . . . Explosive . | . . . . Electromagnetic . | . . . . Robot Hit Streak 15 | . 9 15 9 Robot Miss Streak 3 | . 3 3 1 Penetration Max . | . . . . Secondary Targets 3 | . . 3 . Max Gunslinging Chain 1 | . . 1 . Shots Hit Robots 124 | . 30 64 30 Core Hits 39 | . 10 22 7 Critical Kills . | . . . . Critical Parts Destroyed 5 | . . 1 4 Critical Strikes 5 | . . 1 4 Destroy 1 | . . 1 . Smash 4 | . . . 4 Melee Attacks 27 | . . . 27 Impact 27 | . . . 27 Slashing . | . . . . Piercing . | . . . . Sneak Attacks 1 | . . . 1 Combat Hostiles . | . . . . Follow-up Attacks . | . . . . Damage Inflicted 1565 | . 242 495 828 Guns 812 | . 242 495 75 Cannons . | . . . . Explosions . | . . . . Melee 753 | . . . 753 Ramming . | . . . . Kinetic 812 | . 242 495 75 Thermal . | . . . . Explosive . | . . . . Electromagnetic . | . . . . Impact 753 | . . . 753 Slashing . | . . . . Piercing . | . . . . Highest Corruption 3 | . . 3 3 Average Corruption 3 | . . 3 3 Corruption Purged . | . . . . Corruption Blocked . | . . . . Effects 10 | . . 7 3 Message Errors 3 | . . 3 . Energy Discharges 1 | . . . 1 Parts Rejected 1 | . . . 1 Parts Fused 1 | . . 1 . Data Loss (minor) 3 | . . 2 1 Misfires 1 | . . 1 . Overload Shots . | . . . . Overflow Damage 175 | . . . 175 Projectiles . | . . . . Explosions . | . . . . Melee 175 | . . . 175 Knockbacks 5 | . . . 5 Impact 5 | . . . 5 Kinetic . | . . . . Secondary . | . . . . Self-Inflicted Damage . | . . . . Shots . | . . . . Rammed 1 | . . 1 . Targets Rammed 1 | . . 1 . Kicked . | . . . . Crushed . | . . . . Highest Temperature 36 | . 15 36 1 Average Temperature 9 | . 6 12 1 Received Heat Transfer 594 | . 162 156 276 Siege Activations . | . . . . Martial Activations . | . . . . Shielding Activations . | . . . . Robots Disrupted . | . . . . Combat Hostiles . | . . . . Robots Corrupted 3 | . . . 3 Combat Hostiles 2 | . . . 2 Parts Fried 3 | . . . 3 Impact Corruptions 6 | . . . 6 Robots Melted . | . . . . Combat Hostiles . | . . . . Parts Melted 1 | . . . 1 Heat Transferred . | . . . . Parts Sabotaged . | . . . . Parts Stolen . | . . . . Parts Stripped . | . . . . Power Chain Reactions . | . . . . Alert | -11 -10 -9 -9 ------- Run | Yrd Mat Mat Sto Maximum Alert Level . | . . . . Low Security (%) 100 | 100 100 100 100 Level 1 . | . . . . Level 2 . | . . . . Level 3 . | . . . . Level 4 . | . . . . Level 5 . | . . . . High Security . | . . . . Max Security . | . . . . Peak Influence 105 | . 55 80 105 Initial 10 | . . 10 . Average 30 | . 25 39 27 Influence Increases 520 | . 125 180 215 Destroy 0b10 Robot/C 340 | . 80 140 120 Destroy 0b10 Robot/NC 15 | . . 10 5 Destroy Leader 90 | . 30 30 30 Disable Machine 15 | . . . 15 Lose Combat Pursuer 60 | . 15 . 45 Influence Decreases 415 | . 100 205 110 Entered New Map 15 | . . 15 . Time Decay 330 | . 100 170 60 Lost Part 70 | . . 20 50 Squads Dispatched 5 | . 2 2 1 Investigation . | . . . . Extermination . | . . . . Reinforcement 5 | . 2 2 1 Assault . | . . . . Garrison . | . . . . Intercept . | . . . . Searches Triggered . | . . . . Construction Impeded . | . . . . Haulers Reinforced . | . . . . Active Scanning Responses . | . . . . Cargo Convoy Interrupts . | . . . . Stealth | -11 -10 -9 -9 --------- Run | Yrd Mat Mat Sto Distress Signals 1 | . . . 1 Communications Jammed . | . . . . Distress Signals . | . . . . Times Spotted 31 | . 9 13 9 Peak Tracking Total 7 | . 3 5 7 Tactical Retreats 2 | . 1 . 1 Traps | -11 -10 -9 -9 ------- Run | Yrd Mat Mat Sto Traps Triggered . | . . . . Indirectly . | . . . . Trap Hack Attempts . | . . . . Triggered . | . . . . Disarmed . | . . . . Reprogrammed . | . . . . Reused . | . . . . Traps Extracted . | . . . . Installed . | . . . . Triggered . | . . . . Machines | -11 -10 -9 -9 ---------- Run | Yrd Mat Mat Sto Machines Disabled 1 | . . . 1 Max in Single Turn 1 | . . . 1 Machines Repaired . | . . . . Machines Dismantled . | . . . . Machines Sabotaged . | . . . . Overloaded Fab Kills . | . . . . Hacking | -11 -10 -9 -9 --------- Run | Yrd Mat Mat Sto Machines Accessed . | . . . . Terminals . | . . . . Fabricators . | . . . . Repair Stations . | . . . . Recycling Units . | . . . . Scanalyzers . | . . . . Garrison Access . | . . . . Total Hacks . | . . . . Successful . | . . . . Failed . | . . . . Catastrophic . | . . . . Database Lockouts . | . . . . Manual . | . . . . Terminals . | . . . . Fabricators . | . . . . Repair Stations . | . . . . Recycling Units . | . . . . Scanalyzers . | . . . . Garrison Access . | . . . . Terminal Hacks . | . . . . Fabricator Hacks . | . . . . Repair Station Hacks . | . . . . Recycling Unit Hacks . | . . . . Scanalyzer . | . . . . Garrison Access Hacks . | . . . . Unauthorized Hacks . | . . . . Terminals . | . . . . Fabricators . | . . . . Repair Stations . | . . . . Recycling Units . | . . . . Scanalyzers . | . . . . Garrison Access . | . . . . Data Cores Recovered . | . . . . Used . | . . . . Hacking Detections . | . . . . Full Trace Events . | . . . . Feedback Events . | . . . . Feedback Blocked . | . . . . Robot Schematics Acquired . | . . . . Robots Built . | . . . . Authchips . | . . . . Time . | . . . . Total Robot Build Rating . | . . . . Part Schematics Acquired . | . . . . Parts Built . | . . . . Authchips . | . . . . Time . | . . . . Total Part Build Rating . | . . . . Part Studies Acquired . | . . . . Parts Repaired . | . . . . Time . | . . . . Parts Recycled . | . . . . Recycled Matter . | . . . . Retrieved Matter . | . . . . Retrieved Components . | . . . . Parts Scanalyzed . | . . . . Part Schematics Acquired . | . . . . Parts Damaged . | . . . . Bothacking | -11 -10 -9 -9 ------------ Run | Yrd Mat Mat Sto Used RIF Installer . | . . . . Robots Hacked . | . . . . Non-combat . | . . . . Combat . | . . . . Robot Hacks Applied . | . . . . Relay Couplers Released . | . . . . Fabnet Peak Effective % . | . . . . Robots Rewired . | . . . . Allies Hacked . | . . . . Hacks Repelled . | . . . . Allies | -11 -10 -9 -9 -------- Run | Yrd Mat Mat Sto Total Allies . | . . . . Largest Group . | . . . . Highest-Rated Group . | . . . . Highest-Rated Ally . | . . . . Total Orders . | . . . . Ally Attacks . | . . . . Total Damage . | . . . . Kills . | . . . . Allies Corrupted . | . . . . Allies Melted . | . . . . Intel | -11 -10 -9 -9 ------- Run | Yrd Mat Mat Sto Active Infowar (turns) 450 | . 20 359 71 Optics 450 | . 20 359 71 Robot Analysis Total . | . . . . Derelict Logs Recovered . | . . . . Drone Launches . | . . . . Drone Recoveries . | . . . . Exploration | -11 -10 -9 -9 ------------- Run | Yrd Mat Mat Sto Turns Passed 837 | 54 237 359 187 Spaces Moved 493 | 50 177 188 78 Core 13 | 3 . . 10 Treads . | . . . . Legs . | . . . . Wheels 480 | 47 177 188 68 Hover . | . . . . Flight . | . . . . Fastest Speed 50 | 50 90 90 90 Average Speed 96 | 88 90 103 101 Slowest Speed 300 | 100 90 115 300 Overloaded Moves . | . . . . Propulsion Burnouts . | . . . . Robots Hopped . | . . . . Potential Cave-ins . | . . . . Cave-ins Triggered . | . . . . Exploration Rate (%) 20 | 4 32 19 26 Regions Visited 3 Branch Regions 1 Pre-discovered Areas . | . . . . Known Exits Taken . | . . . . Unknown Exits Taken 3 | 1 1 1 . Scrap Searched . | . . . . Spaces Dug . | . . . . Terrain Destroyed . | . . . . Melee . | . . . . Projectile . | . . . . AOE . | . . . . Terrain Rammed . | . . . . Walls Destroyed . | . . . . Machines Disabled . | . . . . Actions | -11 -10 -9 -9 --------- Run | Yrd Mat Mat Sto Total 681 | 56 216 279 130 Wait 59 | . 15 37 7 Move 491 | 49 176 188 78 Hop . | . . . . Pick Up 4 | 1 . 3 . Fast Attach 15 | 6 2 4 3 Attach 4 | . . . 4 Detach . | . . . . Swap 3 | . . 2 1 Drop 1 | . . 1 . Fire 77 | . 23 44 10 Melee 27 | . . . 27 Ram . | . . . . Kick . | . . . . Crush . | . . . . Escape Stasis . | . . . . Rewire . | . . . . Trap . | . . . . Miscellaneous . | . . . . Route ------- -11/Scrapyard -10/Materials (discovered 3 exits: [*Mat] / [*Min] / [*Sub]) -9/Materials -9/Storage History --------- Turn | Location | Event 3 | -11/Scrapyard | Discovered new exit (range 16) 55 | -11/Scrapyard | Entered Materials 56 | -10/Materials | Met a group of wandering Federalists 170 | -10/Materials | Discovered new exit (range 8) 187 | -10/Materials | Discovered new exit (range 15) 266 | -10/Materials | Discovered new exit (range 9) 292 | -10/Materials | Entered another Materials area 292 | -9/Materials | Evolved 2 slots: Utility x2 318 | -9/Materials | Build established: Mutant 640 | -9/Materials | Discovered new exit (range 6) 651 | -9/Materials | Entered Storage 706 | -9/Storage | Core integrity fell below 50% 763 | -9/Storage | Core integrity fell below 20% 766 | -9/Storage | Lost 6 parts (1p2n2u1w) 838 | -9/Storage | Destroyed by G-34 Mercenary with Small Laser Last Messages --------------- 00775_ Acquired Hvy. Hammer. 00776_ System corrupted: Component data lost. 00778_ G-34 Mercenary suffers critical hit (Smash). 00778_ Destroyed Heat Sink. 00778_ G-34 Mercenary system corrupted by crushing effect. 00778_ G-34 Mercenary knocked back. 00784_ Acquired Ion Engine. 00788_ Acquired Heat Sink. 00790_ Acquired 31 matter. 00796_ System corrupted: Energy discharge (-53). 00817_ K-01 Serf collects debris. 00826_ Lgt. Assault Rifle destroyed. 00834_ G-47 Trooper suffers critical hit (Smash). 00834_ Destroyed Aluminum Leg. 00834_ G-47 Trooper system corrupted by crushing effect. 00835_ G-47 Trooper system terminally corrupted. 00835_ Imp. Heat Sink fried. 00835_ Aluminum Leg fried. Map ----- +----------------------------------------------------+ | ????????????????????????????? | | ### ############???????????????????????????????? | | ??# ############???????????????????????????????? | | ??# # #???????????????????????????????? | | ??# ## #???????????????????????????????? | | ??# ## #???????????????????????????????? | | ??# ## """"#???????????????????????????????? | | ??# ## """"#???????????????????????????????? | | ??# ## """"#???????????????????????????????? | | ??# ## ="% "#???????????????????????????????? | | ?## ## ^% #???????????????????????????????? | | ?# #####+#########+#########+########### ???? | | ?# %% ??? | | ?# " % ??? | | ?# ??? | | ?# ####### #####+#########+#######?????????? | | ?#######?????# #?# ?# #???????????? | | ?????????????# #?# ## ! #???????????? | | ?????????????# #?# k ## #???????????? | | ?????????????# #?# ## [ #???????????? | | ?????????????# #?# ## ! #???????????? | | ?????????????# #?# = ## [ #???????????? | | ?????????????# #?#] ## #???????????? | | ?????????????# ### = ## #???????????? | | ?????????????# + ####+#######" "#???????? | | ?????????????##+##?# @#### ???? | | ???????????????????# g% ???? | | ???????????????????########### ???? | | ?????????????????????????????# #####+######????? | | ?????????????????????????????# #???????????????? | | ?????????????????????????????# #???????????????? | | ?????????????????????????????# #???????????????? | | ?????????????????????????????# #???????????????? | | ?????????????????????????????# #???????????????? | | ?????????????????????????????? #???????????????? | | ?????????????????????????????? #???????????????? | | ?????????????????????????????? #???????????????? | | ?????????????????????????????? ???????????????? | | ??????????????????????????????#+##???????????????? | | ?????????????????????????????????????????????????? | | ?????????????????????????????????????????????????? | | ?????????????????????????????????????????????????? | | ?????????????????????????????????????????????????? | | ?????????????????????????????????????????????????? | | ?????????????????????????????????????????????????? | | ?????????????????????????????????????????????????? | | ?????????????????????????????????????????????????? | | ?????????????????????????????????????????????????? | | ?????????????????????????????????????????????????? | | ?????????????????????????????????????????????????? | +----------------------------------------------------+ Best States ------------- Heat Dissipation 38 Energy Generation 14 Energy Capacity 265 Matter Stores 300 Matter Capacity 300 Sight Range 18 Terrain Scan Density 85 Armor Coverage 150 Evasion (%) 42 Item Schematics ----------------- None Robot Schematics ------------------ None Fabricated ------------ Nothing Repaired ---------- Nothing Studied --------- None Alien Tech Used ----------------- None Achievements -------------- For Emergencies Only There's More Where That Came From Challenges ------------ None Game ------ Seed SystemDefenseRefractor Manual? 0 Play Time 00:05:42 Cumulative 38.8 hours Start 2025.10.22 @ 00:56:39 End 2025.10.22 @ 01:01:11 Sessions 1 Manual Loads 0 Difficulty Rogue Special Mode None Game No. 157 Rogue 157 Adventurer 0 Explorer 0 Win Type - Total 0 Types 0/0/0/0/0/0/0/0/0/0 Lore% 12 Gallery% 32 Achievement% 18 Wizard Run 0 Options --------- Layout 1 ASCII 0 Keyboard 1 Movement Vi Keybinds 0 Fullscreen 1 Font 16/SmallcapsGlow Map View 55x38 Zoom Use 0% Tactical HUD 1 Map Filters NONE Filters NONE Steam 1 RUN: 6214bfc9-c764-4a5b-9dd0-77e8275c2556